[Event "GrandPrix_30.05"]
[Site "Chess.com"]
[Date "2020.05.30"]
[Round "5"]
[White "Yuri202062"]
[Black "Ave_Mariia"]
[Result "0-1"]
[WhiteElo "2019"]
[BlackElo "2210"]
[TimeControl "600+2"]
[EndTime "10:23:17 PDT"]
[Termination "Ave_Mariia won by resignation"]

1. d4 {[%clk 0:09:33]} 1... Nf6 {[%clk 0:09:58.2]} 2. c4 {[%clk 0:09:33.4]} 2...
e6 {[%clk 0:09:59.3]} 3. Nc3 {[%clk 0:09:33.9]} 3... Bb4 {[%clk 0:09:59.7]} 4.
e3 {[%clk 0:09:35.1]} 4... O-O {[%clk 0:09:59.4]} 5. Bd3 {[%clk 0:09:36.1]} 5...
d5 {[%clk 0:09:56.3]} 6. cxd5 {[%clk 0:09:36.8]} 6... exd5 {[%clk 0:09:53.6]} 7.
Ne2 {[%clk 0:09:37.2]} 7... c6 {[%clk 0:09:09.5]} 8. O-O {[%clk 0:09:37]} 8...
Nbd7 {[%clk 0:09:02]} 9. f3 {[%clk 0:09:37.6]} 9... Re8 {[%clk 0:09:02.5]} 10.
e4 {[%clk 0:09:35.9]} 10... dxe4 {[%clk 0:08:55.2]} 11. fxe4 {[%clk 0:09:36.4]}
11... Nf8 {[%clk 0:08:25.2]} 12. Bg5 {[%clk 0:08:29.9]} 12... Be7 {[%clk
0:08:25.6]} 13. e5 {[%clk 0:08:30]} 13... Nd5 {[%clk 0:08:23.3]} 14. Bxe7 {[%clk
0:08:31]} 14... Rxe7 {[%clk 0:08:06.7]} 15. Qd2 {[%clk 0:08:24.8]} 15... Bg4
{[%clk 0:07:47.6]} 16. Ng3 {[%clk 0:07:37.5]} 16... Qb6 {[%clk 0:06:09.2]} 17.
Nxd5 {[%clk 0:06:18.1]} 17... cxd5 {[%clk 0:06:10]} 18. Bf5 {[%clk 0:06:17.1]}
18... Bxf5 {[%clk 0:06:02.2]} 19. Rxf5 {[%clk 0:06:07.9]} 19... Ne6 {[%clk
0:05:51.9]} 20. Rd1 {[%clk 0:06:06]} 20... Rc8 {[%clk 0:05:51.9]} 21. Rf3 {[%clk
0:05:55.1]} 21... Rc4 {[%clk 0:05:29.9]} 22. Nf5 {[%clk 0:05:53.7]} 22... Rec7
{[%clk 0:05:24.5]} 23. Rb3 {[%clk 0:02:43.5]} 23... Qa6 {[%clk 0:05:00.1]} 24.
Rg3 {[%clk 0:02:28.9]} 24... Kh8 {[%clk 0:03:20.4]} 25. Nxg7 {[%clk 0:01:15.4]}
25... Rxd4 {[%clk 0:03:12.3]} 26. Qe1 {[%clk 0:00:34.1]} 26... Rxd1 {[%clk
0:03:11.2]} 27. Qxd1 {[%clk 0:00:35]} 27... Nxg7 {[%clk 0:03:06.4]} 28. h3
{[%clk 0:00:30.8]} 28... Qe6 {[%clk 0:02:56.5]} 29. Qd4 {[%clk 0:00:20.3]} 29...
Nf5 {[%clk 0:02:52.3]} 0-1

[Event "GrandPrix_30.05"]
[Site "Chess.com"]
[Date "2020.05.30"]
[Round "5"]
[White "BlackBoarder"]
[Black "N4700000"]
[Result "1-0"]
[WhiteElo "2188"]
[BlackElo "2210"]
[TimeControl "600+2"]
[EndTime "10:23:18 PDT"]
[Termination "BlackBoarder won by resignation"]

1. e4 {[%clk 0:09:58.5]} 1... c5 {[%clk 0:09:51.4]} 2. Nf3 {[%clk 0:09:58.6]}
2... e6 {[%clk 0:09:49.4]} 3. c3 {[%clk 0:09:58.4]} 3... Nf6 {[%clk 0:09:48.7]}
4. e5 {[%clk 0:09:58.3]} 4... Nd5 {[%clk 0:09:50.2]} 5. d4 {[%clk 0:09:58.9]}
5... cxd4 {[%clk 0:09:48.3]} 6. cxd4 {[%clk 0:09:57.8]} 6... d6 {[%clk
0:09:45.4]} 7. Bd3 {[%clk 0:09:53]} 7... Nc6 {[%clk 0:09:38.4]} 8. a3 {[%clk
0:09:53]} 8... dxe5 {[%clk 0:09:32.3]} 9. dxe5 {[%clk 0:09:52.8]} 9... Be7
{[%clk 0:09:27.5]} 10. O-O {[%clk 0:09:53.1]} 10... O-O {[%clk 0:09:27.4]} 11.
Bd2 {[%clk 0:09:50.2]} 11... b6 {[%clk 0:09:24.1]} 12. Qc2 {[%clk 0:09:31.6]}
12... Bb7 {[%clk 0:09:22.2]} 13. Bxh7+ {[%clk 0:09:31.7]} 13... Kh8 {[%clk
0:09:23.7]} 14. Be4 {[%clk 0:09:18.4]} 14... Rc8 {[%clk 0:09:22.4]} 15. Nc3
{[%clk 0:09:19.1]} 15... Na5 {[%clk 0:09:12.1]} 16. Rfd1 {[%clk 0:08:59.1]}
16... Nc4 {[%clk 0:09:08.9]} 17. Rac1 {[%clk 0:07:33]} 17... Nxd2 {[%clk
0:08:57.4]} 18. Rxd2 {[%clk 0:07:02.2]} 18... Bg5 {[%clk 0:08:54.1]} 19. Nxg5
{[%clk 0:06:56.5]} 19... Qxg5 {[%clk 0:08:56]} 20. Rd3 {[%clk 0:03:18.1]} 20...
g6 {[%clk 0:08:53.8]} 21. Re1 {[%clk 0:01:24]} 21... Rc4 {[%clk 0:08:30.5]} 22.
Qd2 {[%clk 0:01:11.2]} 22... Qxd2 {[%clk 0:08:08.9]} 23. Rxd2 {[%clk 0:01:11.8]}
23... Nxc3 {[%clk 0:07:35.1]} 24. Bxb7 {[%clk 0:01:11.1]} 24... Nb5 {[%clk
0:07:20.6]} 25. Ba6 {[%clk 0:01:08.7]} 25... Rd4 {[%clk 0:07:19.8]} 26. Red1
{[%clk 0:01:02.2]} 26... Rfd8 {[%clk 0:06:59.2]} 27. Rxd4 {[%clk 0:00:59.4]}
27... Nxd4 {[%clk 0:07:01.1]} 28. Kf1 {[%clk 0:00:55]} 28... Kg7 {[%clk
0:06:55.8]} 29. f4 {[%clk 0:00:49.2]} 29... Kf8 {[%clk 0:06:50.5]} 30. Kf2
{[%clk 0:00:43.2]} 30... Ke7 {[%clk 0:06:50.5]} 31. g4 {[%clk 0:00:38]} 31...
Rd5 {[%clk 0:06:27]} 32. Bc4 {[%clk 0:00:31.4]} 32... Rd8 {[%clk 0:06:21.7]} 33.
h4 {[%clk 0:00:28.5]} 33... a5 {[%clk 0:06:12.1]} 34. h5 {[%clk 0:00:22.9]}
34... gxh5 {[%clk 0:06:11.2]} 35. gxh5 {[%clk 0:00:24.8]} 35... Kf8 {[%clk
0:05:54]} 36. h6 {[%clk 0:00:18.4]} 36... Kg8 {[%clk 0:05:41.8]} 37. Bd3 {[%clk
0:00:19]} 37... Kh8 {[%clk 0:05:24.9]} 38. Be4 {[%clk 0:00:16.4]} 38... Rd7
{[%clk 0:05:01]} 39. Rd3 {[%clk 0:00:13.3]} 39... Rd8 {[%clk 0:04:58.3]} 40. Rd2
{[%clk 0:00:11.4]} 40... Nc6 {[%clk 0:04:41.2]} 41. Rxd8+ {[%clk 0:00:10.7]}
41... Nxd8 {[%clk 0:04:43.1]} 42. Ke3 {[%clk 0:00:11.1]} 42... f5 {[%clk
0:04:36.8]} 43. exf6 {[%clk 0:00:07.8]} 43... Nf7 {[%clk 0:04:37.8]} 44. h7
{[%clk 0:00:07.9]} 44... Nh6 {[%clk 0:04:22.2]} 45. Kd4 {[%clk 0:00:06.8]} 45...
Ng4 {[%clk 0:04:22.9]} 46. f7 {[%clk 0:00:07]} 1-0

[Event "GrandPrix_30.05"]
[Site "Chess.com"]
[Date "2020.05.30"]
[Round "5"]
[White "Thor736"]
[Black "Nikame"]
[Result "0-1"]
[WhiteElo "2090"]
[BlackElo "2277"]
[TimeControl "600+2"]
[EndTime "10:23:25 PDT"]
[Termination "Nikame won by resignation"]

1. e4 {[%clk 0:10:01.5]} 1... c5 {[%clk 0:09:58.8]} 2. Nf3 {[%clk 0:10:01.8]}
2... Nc6 {[%clk 0:09:59.9]} 3. d4 {[%clk 0:10:02.8]} 3... cxd4 {[%clk
0:10:00.6]} 4. Nxd4 {[%clk 0:10:04.4]} 4... Nf6 {[%clk 0:10:01.6]} 5. Nc3 {[%clk
0:10:05.3]} 5... d6 {[%clk 0:10:02.8]} 6. Bg5 {[%clk 0:10:01]} 6... Bd7 {[%clk
0:09:57.1]} 7. Qd2 {[%clk 0:09:59.2]} 7... Rc8 {[%clk 0:09:57.2]} 8. Be2 {[%clk
0:09:59.8]} 8... a6 {[%clk 0:09:32.8]} 9. O-O-O {[%clk 0:09:50.4]} 9... Nxd4
{[%clk 0:09:16.2]} 10. Qxd4 {[%clk 0:09:49.9]} 10... Qa5 {[%clk 0:09:17.7]} 11.
f4 {[%clk 0:09:00.1]} 11... Qc5 {[%clk 0:08:15.2]} 12. e5 {[%clk 0:07:43.4]}
12... Qxd4 {[%clk 0:07:22.8]} 13. Rxd4 {[%clk 0:07:42]} 13... h6 {[%clk
0:07:20.9]} 14. Bh4 {[%clk 0:06:42.4]} 14... g5 {[%clk 0:05:32.6]} 15. exf6
{[%clk 0:06:27.9]} 15... gxh4 {[%clk 0:05:32.6]} 16. fxe7 {[%clk 0:06:28.6]}
16... Bg7 {[%clk 0:05:23.9]} 17. Rxd6 {[%clk 0:05:43.9]} 17... Bxc3 {[%clk
0:05:19.4]} 18. bxc3 {[%clk 0:05:42.8]} 18... Kxe7 {[%clk 0:05:14.7]} 19. Rxd7+
{[%clk 0:04:26.2]} 19... Kxd7 {[%clk 0:05:13.9]} 20. Bg4+ {[%clk 0:04:26.3]}
20... Ke7 {[%clk 0:05:12]} 21. Bxc8 {[%clk 0:04:25.9]} 21... Rxc8 {[%clk
0:05:13.4]} 22. Kd2 {[%clk 0:03:03.7]} 22... Rg8 {[%clk 0:04:56.9]} 23. Rg1
{[%clk 0:02:57.7]} 23... h3 {[%clk 0:04:49]} 24. g3 {[%clk 0:02:50.6]} 24... Kf6
{[%clk 0:04:47.5]} 25. Ke3 {[%clk 0:02:37.6]} 25... Kf5 {[%clk 0:04:45.5]} 26.
Rb1 {[%clk 0:00:46.3]} 26... b5 {[%clk 0:04:40.9]} 27. c4 {[%clk 0:00:41.3]}
27... Re8+ {[%clk 0:04:38.1]} 28. Kf3 {[%clk 0:00:40]} 28... bxc4 {[%clk
0:04:11.8]} 29. g4+ {[%clk 0:00:38.2]} 29... Kg6 {[%clk 0:04:09.1]} 30. Rb6+
{[%clk 0:00:38.8]} 30... f6 {[%clk 0:04:09.9]} 31. Rxa6 {[%clk 0:00:34.5]} 31...
Re1 {[%clk 0:04:05.2]} 32. Rc6 {[%clk 0:00:19.9]} 32... Rg1 {[%clk 0:04:01.8]}
33. Rxc4 {[%clk 0:00:10]} 33... Rg2 {[%clk 0:04:02.6]} 34. a4 {[%clk 0:00:11]}
34... Rxh2 {[%clk 0:04:01.5]} 35. a5 {[%clk 0:00:12.6]} 35... Rd2 {[%clk
0:04:00.9]} 36. Ra4 {[%clk 0:00:05.8]} 36... h2 {[%clk 0:03:59.2]} 37. Ra1
{[%clk 0:00:06.2]} 37... Rxc2 {[%clk 0:04:00]} 38. Kg3 {[%clk 0:00:04]} 38...
Ra2 {[%clk 0:03:55.3]} 39. f5+ {[%clk 0:00:05.3]} 39... Kg5 {[%clk 0:03:53.7]}
40. Rh1 {[%clk 0:00:06.3]} 40... Rxa5 {[%clk 0:03:53.5]} 41. Rxh2 {[%clk
0:00:06.3]} 41... Ra3+ {[%clk 0:03:54.4]} 42. Kg2 {[%clk 0:00:03.3]} 42... Ra2+
{[%clk 0:03:55.6]} 43. Kg1 {[%clk 0:00:03.9]} 43... Rxh2 {[%clk 0:03:57.1]} 0-1

[Event "GrandPrix_30.05"]
[Site "Chess.com"]
[Date "2020.05.30"]
[Round "5"]
[White "moro182"]
[Black "BakaPG"]
[Result "1-0"]
[WhiteElo "2517"]
[BlackElo "2308"]
[TimeControl "600+2"]
[EndTime "10:23:28 PDT"]
[Termination "moro182 won by resignation"]

1. d4 {[%clk 0:10:01.9]} 1... d5 {[%clk 0:09:58.8]} 2. c4 {[%clk 0:10:01.3]}
2... c6 {[%clk 0:09:59.7]} 3. Nc3 {[%clk 0:10:02.4]} 3... Nf6 {[%clk 0:09:59.6]}
4. Nf3 {[%clk 0:10:03.7]} 4... e6 {[%clk 0:10:00.7]} 5. Bg5 {[%clk 0:10:00]}
5... dxc4 {[%clk 0:10:01.3]} 6. a4 {[%clk 0:10:00.8]} 6... Bb4 {[%clk
0:09:59.4]} 7. e3 {[%clk 0:09:59.7]} 7... b5 {[%clk 0:09:49.6]} 8. Be2 {[%clk
0:09:39.9]} 8... Bb7 {[%clk 0:09:47.7]} 9. O-O {[%clk 0:09:37]} 9... a6 {[%clk
0:09:47]} 10. Ne5 {[%clk 0:08:17.2]} 10... Nbd7 {[%clk 0:09:34.4]} 11. f4 {[%clk
0:08:05.5]} 11... h6 {[%clk 0:09:00.7]} 12. Bh4 {[%clk 0:06:38.1]} 12... Qb6
{[%clk 0:08:33.1]} 13. Bf3 {[%clk 0:06:10.8]} 13... Bxc3 {[%clk 0:08:04]} 14.
bxc3 {[%clk 0:06:10.1]} 14... Nxe5 {[%clk 0:08:02]} 15. fxe5 {[%clk 0:06:07.9]}
15... Nd5 {[%clk 0:08:02.5]} 16. Qe1 {[%clk 0:05:31.3]} 16... g5 {[%clk
0:07:57.7]} 17. Bg3 {[%clk 0:05:25.1]} 17... h5 {[%clk 0:07:54.2]} 18. h4 {[%clk
0:04:55.5]} 18... g4 {[%clk 0:07:52.2]} 19. Bxd5 {[%clk 0:04:37.4]} 19... cxd5
{[%clk 0:07:50.5]} 20. Qf2 {[%clk 0:04:35.6]} 20... Rh7 {[%clk 0:07:39.3]} 21.
Bf4 {[%clk 0:04:30.5]} 21... O-O-O {[%clk 0:07:36]} 22. Bg5 {[%clk 0:04:23.2]}
22... Rd7 {[%clk 0:07:32.8]} 23. axb5 {[%clk 0:04:17.4]} 23... axb5 {[%clk
0:07:31.9]} 24. Ra2 {[%clk 0:03:35.1]} 24... b4 {[%clk 0:07:16.7]} 25. cxb4
{[%clk 0:03:34.4]} 25... Qxb4 {[%clk 0:06:59.9]} 26. Qc2 {[%clk 0:03:27.3]}
26... f5 {[%clk 0:06:54.1]} 27. exf6 {[%clk 0:03:21.9]} 27... Qb3 {[%clk
0:06:53.7]} 28. Qf2 {[%clk 0:03:12.5]} 28... Rhf7 {[%clk 0:06:49.2]} 29. Rb2
{[%clk 0:03:10.7]} 29... Qd3 {[%clk 0:06:48.1]} 30. Ra1 {[%clk 0:02:55.5]} 30...
Rc7 {[%clk 0:06:37.8]} 31. Qf4 {[%clk 0:01:56.1]} 31... c3 {[%clk 0:06:33.3]}
32. Rbb1 {[%clk 0:01:56.1]} 32... c2 {[%clk 0:06:33.2]} 33. Rc1 {[%clk
0:01:57.4]} 33... Rc6 {[%clk 0:06:23.2]} 34. Qe5 {[%clk 0:01:52.8]} 34... Qf5
{[%clk 0:05:10.4]} 35. Qxf5 {[%clk 0:01:49.1]} 35... exf5 {[%clk 0:05:10.3]} 36.
Ra2 {[%clk 0:01:51]} 36... Ba6 {[%clk 0:04:43.1]} 37. Rcxc2 {[%clk 0:01:42.7]}
37... Bc4 {[%clk 0:04:43.8]} 38. Kf2 {[%clk 0:01:35.3]} 38... Rfxf6 {[%clk
0:04:09.6]} 39. Bxf6 {[%clk 0:01:32.7]} 39... Rxf6 {[%clk 0:04:09]} 40. Kg3
{[%clk 0:01:14.8]} 40... f4+ {[%clk 0:04:06]} 41. exf4 {[%clk 0:01:14.4]} 41...
Re6 {[%clk 0:04:07]} 42. Ra3 {[%clk 0:01:10.7]} 42... Kd7 {[%clk 0:04:01.7]} 43.
f5 {[%clk 0:01:09.2]} 43... Re4 {[%clk 0:04:00]} 44. f6 {[%clk 0:01:06.1]} 44...
Re8 {[%clk 0:03:28.8]} 45. Rf2 {[%clk 0:00:56.7]} 45... Rf8 {[%clk 0:03:27.7]}
46. Ra7+ {[%clk 0:00:52.9]} 46... Ke6 {[%clk 0:03:27.9]} 47. Re7+ {[%clk
0:00:53.7]} 47... Kd6 {[%clk 0:03:28]} 48. Re5 {[%clk 0:00:55.5]} 1-0

[Event "GrandPrix_30.05"]
[Site "Chess.com"]
[Date "2020.05.30"]
[Round "5"]
[White "Vnebo"]
[Black "swisspower96"]
[Result "0-1"]
[WhiteElo "2138"]
[BlackElo "2320"]
[TimeControl "600+2"]
[EndTime "10:23:40 PDT"]
[Termination "swisspower96 won by resignation"]

1. e4 {[%clk 0:10:01.9]} 1... c5 {[%clk 0:10:00.5]} 2. Nf3 {[%clk 0:09:56.5]}
2... Nc6 {[%clk 0:10:01.4]} 3. d4 {[%clk 0:09:57.6]} 3... cxd4 {[%clk
0:10:02.7]} 4. Nxd4 {[%clk 0:09:59.5]} 4... Nf6 {[%clk 0:10:04.2]} 5. Nc3 {[%clk
0:09:59.9]} 5... e5 {[%clk 0:10:05.4]} 6. Nde2 {[%clk 0:10:01]} 6... Bc5 {[%clk
0:09:19.5]} 7. Ng3 {[%clk 0:09:58.7]} 7... O-O {[%clk 0:09:14.1]} 8. Bc4 {[%clk
0:09:42]} 8... d6 {[%clk 0:09:06.5]} 9. O-O {[%clk 0:09:40.6]} 9... a6 {[%clk
0:09:05.8]} 10. Bg5 {[%clk 0:09:13.1]} 10... h6 {[%clk 0:09:05.4]} 11. Bxf6
{[%clk 0:09:12.5]} 11... Qxf6 {[%clk 0:09:07.3]} 12. Nd5 {[%clk 0:09:13.6]}
12... Qd8 {[%clk 0:09:04.5]} 13. Qh5 {[%clk 0:08:12.4]} 13... Qg5 {[%clk
0:08:56.3]} 14. Qxg5 {[%clk 0:06:43.2]} 14... hxg5 {[%clk 0:08:56.1]} 15. Nf5
{[%clk 0:06:43.1]} 15... Bxf5 {[%clk 0:07:22.2]} 16. exf5 {[%clk 0:06:45]} 16...
e4 {[%clk 0:07:23.3]} 17. Rae1 {[%clk 0:05:40.9]} 17... Rae8 {[%clk 0:07:22.7]}
18. c3 {[%clk 0:04:04.9]} 18... Re5 {[%clk 0:07:17.2]} 19. b4 {[%clk 0:03:09.4]}
19... Ba7 {[%clk 0:07:16.9]} 20. Re2 {[%clk 0:02:59.5]} 20... Rfe8 {[%clk
0:06:59.6]} 21. f6 {[%clk 0:02:43.6]} 21... Rf5 {[%clk 0:06:12.8]} 22. g4 {[%clk
0:02:05.9]} 22... Rf3 {[%clk 0:05:42.1]} 23. fxg7 {[%clk 0:01:39.3]} 23... Kxg7
{[%clk 0:05:38.3]} 24. Kg2 {[%clk 0:01:39]} 24... Re5 {[%clk 0:03:51]} 25. Bb3
{[%clk 0:01:34.5]} 25... Rd3 {[%clk 0:03:41.2]} 26. Ne3 {[%clk 0:00:44.1]} 26...
Ne7 {[%clk 0:03:40.7]} 27. Rc1 {[%clk 0:00:32.4]} 27... Ng6 {[%clk 0:03:29.7]}
28. Ree1 {[%clk 0:00:19.1]} 28... Nh4+ {[%clk 0:03:19]} 29. Kf1 {[%clk
0:00:16.3]} 29... Nf3 {[%clk 0:03:17.1]} 30. Red1 {[%clk 0:00:11.5]} 30... Bxe3
{[%clk 0:03:13.2]} 31. fxe3 {[%clk 0:00:11.3]} 31... Nxh2+ {[%clk 0:03:14.1]}
32. Ke2 {[%clk 0:00:11.2]} 32... Nxg4 {[%clk 0:03:12.6]} 33. Rg1 {[%clk
0:00:09.5]} 33... Rxe3+ {[%clk 0:03:09.1]} 34. Kd2 {[%clk 0:00:10]} 34... Rd3+
{[%clk 0:03:10.2]} 35. Kc2 {[%clk 0:00:10.9]} 35... f5 {[%clk 0:03:07.5]} 36.
Kb2 {[%clk 0:00:08.4]} 36... e3 {[%clk 0:03:05.8]} 0-1

[Event "GrandPrix_30.05"]
[Site "Chess.com"]
[Date "2020.05.30"]
[Round "5"]
[White "Meizon19"]
[Black "ftorodent"]
[Result "1-0"]
[WhiteElo "2307"]
[BlackElo "2142"]
[TimeControl "600+2"]
[EndTime "10:23:44 PDT"]
[Termination "Meizon19 won by resignation"]

1. e4 {[%clk 0:10:01.9]} 1... c5 {[%clk 0:09:59]} 2. Nf3 {[%clk 0:10:02.5]} 2...
e6 {[%clk 0:09:59.7]} 3. Nc3 {[%clk 0:10:03.4]} 3... a6 {[%clk 0:09:59.7]} 4. d4
{[%clk 0:10:03.5]} 4... cxd4 {[%clk 0:10:00.4]} 5. Nxd4 {[%clk 0:10:04.7]} 5...
Qc7 {[%clk 0:10:01.5]} 6. Bd3 {[%clk 0:10:01.2]} 6... Bc5 {[%clk 0:09:58.3]} 7.
Nb3 {[%clk 0:10:01.1]} 7... Be7 {[%clk 0:09:59]} 8. O-O {[%clk 0:09:54.3]} 8...
Nf6 {[%clk 0:09:56.9]} 9. f4 {[%clk 0:09:53.1]} 9... d6 {[%clk 0:09:58]} 10. a4
{[%clk 0:09:46.8]} 10... b6 {[%clk 0:09:52.2]} 11. Be3 {[%clk 0:09:42.6]} 11...
Nc6 {[%clk 0:09:47.6]} 12. Kh1 {[%clk 0:09:28.1]} 12... Bb7 {[%clk 0:09:47.3]}
13. Qe2 {[%clk 0:09:05.8]} 13... O-O {[%clk 0:09:24.5]} 14. Rf3 {[%clk
0:08:21.2]} 14... Nb4 {[%clk 0:08:55.9]} 15. Rh3 {[%clk 0:08:10]} 15... g6
{[%clk 0:08:55.1]} 16. Rf1 {[%clk 0:07:48]} 16... Rfe8 {[%clk 0:08:34.9]} 17.
Nd4 {[%clk 0:07:07.4]} 17... e5 {[%clk 0:08:13.3]} 18. fxe5 {[%clk 0:06:29.6]}
18... dxe5 {[%clk 0:08:13.5]} 19. Nf3 {[%clk 0:06:30.2]} 19... Bc8 {[%clk
0:08:08]} 20. Rh4 {[%clk 0:06:28.8]} 20... Ng4 {[%clk 0:05:20.4]} 21. Bg5 {[%clk
0:06:20.2]} 21... f6 {[%clk 0:04:51.6]} 22. Bc4+ {[%clk 0:05:37.7]} 22... Kg7
{[%clk 0:04:42]} 23. Bc1 {[%clk 0:05:33.3]} 23... h5 {[%clk 0:03:30.2]} 24. h3
{[%clk 0:04:50.8]} 24... Nh6 {[%clk 0:03:31]} 25. Bxh6+ {[%clk 0:04:44.7]} 25...
Kxh6 {[%clk 0:03:32]} 26. g4 {[%clk 0:04:45.7]} 26... Bb7 {[%clk 0:03:08.4]} 27.
gxh5 {[%clk 0:04:18.5]} 27... g5 {[%clk 0:03:09.1]} 28. Rg4 {[%clk 0:04:10.3]}
28... Rac8 {[%clk 0:03:06.2]} 29. Bb3 {[%clk 0:04:07.8]} 29... Qd7 {[%clk
0:02:37.6]} 30. Qg2 {[%clk 0:03:41.8]} 30... Rh8 {[%clk 0:01:53.2]} 31. Nh4
{[%clk 0:02:22]} 31... Rcf8 {[%clk 0:01:30.6]} 32. Nf5+ {[%clk 0:02:10.3]} 32...
Kh7 {[%clk 0:01:31.3]} 33. h4 {[%clk 0:02:05.5]} 33... Bd8 {[%clk 0:01:31.4]}
34. hxg5 {[%clk 0:02:05.6]} 34... fxg5 {[%clk 0:01:32.1]} 35. Rxg5 {[%clk
0:01:51.2]} 35... Bf6 {[%clk 0:01:32.3]} 36. Rg6 {[%clk 0:01:40.9]} 1-0

[Event "GrandPrix_30.05"]
[Site "Chess.com"]
[Date "2020.05.30"]
[Round "5"]
[White "woodhy"]
[Black "szachuspl"]
[Result "0-1"]
[WhiteElo "2175"]
[BlackElo "2369"]
[TimeControl "600+2"]
[EndTime "10:23:50 PDT"]
[Termination "szachuspl won by resignation"]

1. e4 {[%clk 0:09:44.9]} 1... c5 {[%clk 0:09:47.5]} 2. Nf3 {[%clk 0:09:44.3]}
2... e6 {[%clk 0:09:48.3]} 3. d4 {[%clk 0:09:45.1]} 3... cxd4 {[%clk 0:09:49.4]}
4. Nxd4 {[%clk 0:09:47]} 4... Nc6 {[%clk 0:09:50.8]} 5. Nc3 {[%clk 0:09:40.8]}
5... a6 {[%clk 0:09:51.8]} 6. Be3 {[%clk 0:09:35.7]} 6... Nf6 {[%clk 0:09:52.6]}
7. Be2 {[%clk 0:09:35.5]} 7... Bb4 {[%clk 0:09:53.4]} 8. Nxc6 {[%clk 0:08:11.3]}
8... bxc6 {[%clk 0:09:54]} 9. O-O {[%clk 0:08:12]} 9... Bxc3 {[%clk 0:09:02.7]}
10. bxc3 {[%clk 0:08:13.9]} 10... Nxe4 {[%clk 0:09:03.8]} 11. Qd4 {[%clk
0:07:57.2]} 11... Nf6 {[%clk 0:08:55.5]} 12. Bf4 {[%clk 0:06:23.4]} 12... O-O
{[%clk 0:08:12.5]} 13. Bd6 {[%clk 0:06:22.6]} 13... Re8 {[%clk 0:08:13.4]} 14.
Bd3 {[%clk 0:06:09.1]} 14... Qa5 {[%clk 0:08:03.9]} 15. Rfe1 {[%clk 0:05:31.5]}
15... Qd5 {[%clk 0:07:52]} 16. Qb4 {[%clk 0:04:45.3]} 16... a5 {[%clk
0:07:51.9]} 17. Qa3 {[%clk 0:04:45.1]} 17... Qg5 {[%clk 0:07:00.6]} 18. Re3
{[%clk 0:04:24.9]} 18... Ba6 {[%clk 0:06:42.3]} 19. Re5 {[%clk 0:03:40.8]} 19...
Qd2 {[%clk 0:06:26]} 20. Rxa5 {[%clk 0:03:36.5]} 20... Bb7 {[%clk 0:06:14.9]}
21. Rxa8 {[%clk 0:03:07.8]} 21... Rxa8 {[%clk 0:06:14.9]} 22. Qb2 {[%clk
0:03:07.4]} 22... Bc8 {[%clk 0:06:07.3]} 23. c4 {[%clk 0:02:28.9]} 23... Ne8
{[%clk 0:05:52.5]} 24. Bb4 {[%clk 0:02:24.7]} 24... Qg5 {[%clk 0:05:45.5]} 25.
a4 {[%clk 0:02:19.2]} 25... Ba6 {[%clk 0:05:16.3]} 26. Qd4 {[%clk 0:02:12.8]}
26... Qd8 {[%clk 0:04:30.9]} 27. c5 {[%clk 0:02:01.1]} 27... Bxd3 {[%clk
0:04:24.3]} 28. Qxd3 {[%clk 0:02:03]} 28... Nc7 {[%clk 0:04:17.9]} 29. c4 {[%clk
0:01:39.2]} 29... e5 {[%clk 0:04:10.4]} 30. h3 {[%clk 0:01:35.3]} 30... Ne6
{[%clk 0:04:11.3]} 31. Qd6 {[%clk 0:01:25.4]} 31... Qb8 {[%clk 0:04:04.6]} 32.
Qd2 {[%clk 0:00:56.7]} 32... Nd4 {[%clk 0:04:00.5]} 33. Ra2 {[%clk 0:00:54.8]}
33... Nb3 {[%clk 0:03:43]} 34. Qc3 {[%clk 0:00:53.2]} 34... Nxc5 {[%clk
0:03:39.3]} 35. a5 {[%clk 0:00:44.9]} 35... Ne6 {[%clk 0:03:26.9]} 36. a6 {[%clk
0:00:41.9]} 36... c5 {[%clk 0:03:25.9]} 37. Ba5 {[%clk 0:00:27.7]} 37... Qb1+
{[%clk 0:03:23.3]} 38. Kh2 {[%clk 0:00:24.9]} 38... Qxa2 {[%clk 0:03:24.1]} 39.
Bc7 {[%clk 0:00:24.3]} 39... Qxa6 {[%clk 0:03:19.5]} 40. Qxe5 {[%clk 0:00:24.9]}
40... Qxc4 {[%clk 0:03:16.1]} 41. f4 {[%clk 0:00:25.6]} 41... Qxf4+ {[%clk
0:03:10.4]} 42. Qxf4 {[%clk 0:00:27.5]} 42... Nxf4 {[%clk 0:03:11.4]} 43. Bxf4
{[%clk 0:00:28.5]} 43... d5 {[%clk 0:03:12.9]} 44. Bd6 {[%clk 0:00:28.3]} 44...
c4 {[%clk 0:03:13.9]} 45. Be5 {[%clk 0:00:30.2]} 45... Re8 {[%clk 0:03:14.1]}
0-1